fUST/lending_fUST_20240901
["ID","MTS","AMOUNT","RATE_DAILY","PERIOD"]
[336824351,1725192652394,-550.01,0.00027464,15]
[336824352,1725192652403,-500.0,0.00027464,15]
[336824353,1725192652412,-594.2,0.00027464,15]
[336824354,1725192652421,-664.69,0.00027464,15]
[336824355,1725192652430,-500.0,0.00027464,15]
[336824356,1725192652439,-500.0,0.00027465,15]
[336824357,1725192652449,-500.0,0.00027465,15]
[336824358,1725192652458,-789.57,0.00027465,15]
[336824359,1725192652467,-362.30924927,0.00027465,15]
[336824360,1725192652476,-605.35198673,0.0002754,2]
[336824361,1725192652486,-500.0,0.00027664,15]
[336824362,1725192652495,-500.0,0.00027664,15]
[336824363,1725192652505,-500.0,0.00027664,15]
[336824364,1725192652514,-1280.89,0.00027664,15]
[336824365,1725192652523,-157.368868,0.00027664,7]
[336824366,1725192652532,-157.368868,0.00027664,7]
[336824367,1725192652541,-663.755307,0.00027664,7]
[336824368,1725192652551,-663.755307,0.00027664,7]
[336824369,1725192652560,-151.0,0.00027664,7]
[336824370,1725192652569,-500.0,0.00027664,15]
[336824371,1725192652583,-500.0,0.00027664,2]
[336824372,1725192652592,-500.0,0.00027664,15]
[336824373,1725192652601,-674.46,0.00027664,15]
[336824374,1725192652611,-500.0,0.00027664,15]
[336824375,1725192652621,-500.0,0.00027664,15]
[336824376,1725192652630,-763.59,0.00027664,15]
[336824377,1725192652639,-500.0,0.00027664,15]
[336824378,1725192652650,-500.0,0.00027664,15]
[336824379,1725192652661,-500.0,0.00027664,15]
[336824380,1725192652670,-500.0,0.00027665,15]
[336824381,1725192652679,-500.0,0.00027665,15]
[336824382,1725192652689,-474.60518708,0.00027665,15]
[336824383,1725192652698,-189.78453322,0.00027666,15]
[336824384,1725192652707,-1063.95,0.000277,7]
[336824385,1725192652716,-5545.82426911,0.000277,14]
[336824386,1725192652908,-697.59851521,0.000277,14]
[336824387,1725192652921,-1988.24721568,0.000277,14]
[336824388,1725192652931,-1128.56,0.000277,14]
[336824389,1725192652940,-2132.33,0.00027734,15]
[336824390,1725192652949,-500.0,0.00027734,15]
[336824391,1725192652958,-500.0,0.00027734,15]
[336824392,1725192652967,-500.0,0.00027734,15]
[336824393,1725192652976,-500.0,0.00027734,15]
[336824394,1725192652985,-1593.92,0.00027734,15]
[336824395,1725192652994,-500.0,0.00027734,15]
[336824396,1725192653004,-1734.75,0.00027734,15]
[336824397,1725192653013,-1521.75,0.00027734,15]
[336824398,1725192653022,-782.07,0.00027734,15]
[336824399,1725192653032,-500.0,0.00027734,15]
[336824400,1725192653041,-2082.74,0.00027735,15]
[336824401,1725192653051,-9087.28236313,0.00027735,8]
[336824402,1725192653119,-579.82,0.00025544,2]
[336824403,1725192653131,-579.82,0.00025818,2]
[336824404,1725192653143,-579.82,0.00026092,2]
[336824405,1725192653154,-579.82,0.00026366,2]
[336824406,1725192653165,-579.82,0.0002664,2]
[336824407,1725192653174,-579.82,0.00026914,2]
[336824408,1725192653183,-500.0,0.00027187,2]
[336824409,1725192653193,-500.0,0.00027461,15]
[336824410,1725192653202,-3499.42763687,0.00027735,8]
[336824411,1725192653212,-2887.41,0.00027735,15]
[336824412,1725192653222,-689.77,0.00027735,15]
[336824413,1725192653231,-3325.33,0.00027735,15]
[336824414,1725192653242,-1584.26,0.00027735,15]
[336824415,1725192653252,-525.6777001,0.00027735,15]
[336824416,1725192653262,-604.73,0.00027735,15]
[336824417,1725192653271,-1027.88,0.00027735,15]
[336824418,1725192653280,-1132.07,0.00027735,15]
[336824419,1725192653289,-509.52,0.00027735,15]
[336824420,1725192653298,-500.0,0.00027735,15]
[336824421,1725192653307,-500.0,0.00027735,15]
[336824422,1725192653319,-1950.43,0.00027735,15]
[336824423,1725192653330,-500.0,0.00027735,15]
[336824424,1725192653343,-936.19,0.00027735,15]
[336824425,1725192653355,-500.0,0.00027735,15]
[336824426,1725192653365,-544.81,0.00027735,15]
[336824427,1725192653376,-362.49932087,0.00027735,15]
[336824428,1725192653386,-946.89,0.00027735,15]
[336824429,1725192653396,-588.45501698,0.00027735,15]
[336824430,1725192653405,-981.83,0.00027736,15]
[336824431,1725192653415,-500.0,0.00027736,15]
[336824432,1725192653424,-550.78,0.00027736,15]
[336824433,1725192653434,-169.620645,0.00027736,7]
[336824434,1725192653444,-151.0,0.00027736,7]
[336824435,1725192653453,-151.0,0.00027736,7]
[336824436,1725192653463,-500.0,0.00027736,15]
[336824437,1725192653473,-740.94,0.00027736,15]
[336824438,1725192653483,-500.0,0.00027736,15]
[336824439,1725192653493,-885.34,0.00027736,15]
[336824440,1725192653504,-658.94,0.00027736,15]
[336824441,1725192653514,-500.0,0.00027736,15]
[336824442,1725192653524,-500.0,0.00027736,15]
[336824443,1725192653534,-570.52,0.00027736,15]
[336824444,1725192653544,-502.06,0.00027736,15]
[336824445,1725192653555,-1340.91,0.00027736,15]
[336824446,1725192653566,-500.0,0.00027736,15]
[336824447,1725192653580,-500.0,0.00027736,15]
[336824448,1725192653591,-3161.41,0.00027736,15]
[336824449,1725192653603,-500.0,0.00027736,15]
[336824450,1725192653615,-500.0,0.00027736,15]
[336824451,1725192653625,-500.0,0.00027736,15]
[336824452,1725192653635,-526.73,0.00027736,15]
[336824453,1725192653645,-1089.79,0.00027736,15]
[336824454,1725192653657,-500.0,0.00027736,15]
[336824455,1725192653667,-151.0,0.00027736,7]
[336824456,1725192653676,-151.0,0.00027736,7]
[336824457,1725192653686,-590.52,0.00027736,15]
[336824458,1725192653695,-500.0,0.00027736,15]
[336824459,1725192653704,-588.48,0.00027736,15]
[336824460,1725192653714,-1007.91,0.00027736,15]
[336824461,1725192653723,-192.262654,0.00027736,7]
[336824462,1725192653732,-192.262654,0.00027736,7]
[336824463,1725192653742,-151.0,0.00027736,3]
[336824464,1725192653752,-1497.44,0.00027736,15]
[336824465,1725192653761,-500.0,0.00027736,15]
[336824466,1725192653772,-151.0,0.00027736,3]
[336824467,1725192653782,-579.54625346,0.00027736,15]
[336824478,1725193149876,164.297787,0.00014247,2]
[336824481,1725193182028,302.21432435,0.0002,2]
[336824483,1725193627153,-219.0,0.00022791,2]
[336824484,1725193627175,-623.83182441,0.00022792,2]
[336824485,1725193644482,-295.56189834,0.00022792,2]
[336824486,1725193647114,-5535.03351088,0.00022792,2]
[336824487,1725193651105,-605.35306705,0.00022792,2]
[336824493,1725193762325,-13164.29237574,0.0002061,2]
[336824494,1725193762349,-4144.72691532,0.00022792,2]
[336824495,1725193762373,-3000.0,0.00022889,2]
[336824496,1725193762396,-331.497591,0.00023126,2]
[336824497,1725193762419,-183.943552,0.00024089,2]
[336824498,1725193762443,-545.27746594,0.00024152,2]
[336824499,1725193764134,-40.08880982,0.00024152,2]
[336824500,1725193764156,-183.943552,0.00024507,2]
[336824501,1725193764179,-183.943552,0.00024925,2]
[336824502,1725193764201,-8830.75843189,0.0002509,2]
[336824503,1725193769093,-7499.20258208,0.0002509,2]
[336824504,1725193769117,-1032.14910951,0.00025149,2]
[336824505,1725193769141,-2820.03320426,0.00025158,2]
[336824506,1725193769162,-1074.1317959,0.00025161,2]
[336824514,1725193832533,-165.748795,0.0002422,2]
[336824515,1725193832544,-1745.90140836,0.00025161,2]
[336824516,1725193832554,-2820.03320426,0.00025163,2]
[336824517,1725193832564,-2820.03320426,0.00025166,2]
[336824518,1725193832573,-2820.03320426,0.00025168,2]
[336824519,1725193832582,-500.14101376,0.00025247,2]
[336824520,1725193832591,-500.0,0.00025247,2]
[336824521,1725193832601,-500.0,0.00025247,2]
[336824522,1725193832610,-234.74513271,0.00025247,2]
[336824598,1725193843028,-265.25486729,0.00025247,2]
[336824599,1725193843038,-500.0,0.00025247,2]
[336824600,1725193843047,-613.65,0.00025247,2]
[336824601,1725193843057,-500.0,0.00025247,2]
[336824602,1725193843067,-500.0,0.00025247,2]
[336824603,1725193843076,-500.0,0.00025247,2]
[336824604,1725193843086,-500.0,0.00025247,2]
[336824605,1725193843095,-500.0,0.00025247,2]
[336824606,1725193843104,-197.66,0.00025247,3]
[336824607,1725193843115,-593.02,0.00025247,3]
[336824608,1725193843125,-1219.9,0.00025247,3]
[336824609,1725193843136,-1016.58,0.00025247,3]
[336824610,1725193843145,-847.15,0.00025247,3]
[336824611,1725193843156,-10139.5441209,0.00025248,3]
[336824612,1725193843166,-10139.5441209,0.0002525,3]
[336824613,1725193843176,-500.0,0.00025253,2]
[336824614,1725193843185,-500.0,0.00025253,2]
[336824615,1725193843195,-501.58213849,0.00025254,2]
[336824616,1725193843205,-1792.43,0.00025254,2]
[336824617,1725193843215,-500.0,0.00025254,2]
[336824618,1725193843224,-500.0,0.00025254,2]
[336824619,1725193843235,-500.0,0.00025254,2]
[336824620,1725193843245,-500.0,0.00025254,2]
[336824621,1725193843255,-500.0,0.00025254,2]
[336824622,1725193843265,-500.0,0.00025254,2]
[336824623,1725193843275,-7563.41,0.00025254,2]
[336824624,1725193843284,-500.0,0.00025254,2]
[336824625,1725193843294,-500.0,0.00025254,2]
[336824626,1725193843303,-416.09270288,0.00025254,2]
[336824627,1725193843313,-1176.7,0.00025254,2]
[336824628,1725193843324,-887.69,0.00025254,2]
[336824630,1725193843333,-929.78,0.00025254,2]
[336824632,1725193843343,-500.0,0.00025254,2]
[336824634,1725193843353,-500.0,0.00025254,2]
[336824635,1725193843364,-20279.0882418,0.00025257,3]
[336824636,1725193843373,-500.0,0.00025257,2]
[336824637,1725193843383,-500.0,0.00025257,2]
[336824639,1725193843392,-491.21950602,0.00025257,2]
[336824641,1725193843402,-500.0,0.00025257,2]
[336824643,1725193843412,-500.0,0.00025257,2]
[336824645,1725193843422,-500.0,0.00025257,2]
[336824647,1725193843431,-500.0,0.00025257,2]
[336824648,1725193843441,-600.0,0.00025257,2]
[336824649,1725193843451,-500.0,0.00025257,2]
[336824650,1725193843461,-500.0,0.00025257,2]
[336824652,1725193843471,-500.0,0.00025257,2]
[336824653,1725193843482,-500.0,0.00025257,2]
[336824655,1725193843492,-500.0,0.00025257,2]
[336824657,1725193843501,-500.0,0.00025257,2]
[336824659,1725193843510,-500.0,0.00025257,2]
[336824661,1725193843520,-500.0,0.00025257,2]
[336824663,1725193843529,-580.79830409,0.00025257,2]
[336824665,1725193843539,-500.0,0.00025257,2]
[336824667,1725193843549,-500.0,0.00025257,2]
[336824668,1725193843558,-500.0,0.00025257,2]
[336824670,1725193843568,-500.0,0.00025257,2]
[336824671,1725193843579,-500.0,0.00025257,2]
[336824672,1725193843589,-500.0,0.00025257,2]
[336824674,1725193843598,-500.0,0.00025257,2]
[336824676,1725193843608,-500.0,0.00025257,2]
[336824677,1725193843619,-500.0,0.00025257,2]
[336824678,1725193843628,-500.0,0.00025257,2]
[336824679,1725193843638,-500.0,0.00025257,2]
[336824680,1725193843648,-500.0,0.00025257,2]
[336824681,1725193843657,-500.0,0.00025257,2]
[336824682,1725193843667,-500.0,0.00025257,2]
[336824683,1725193843677,-500.0,0.00025257,2]
[336824684,1725193843687,-500.0,0.00025257,2]
[336824685,1725193843697,-600.0,0.00025257,2]
[336824686,1725193843706,-500.0,0.00025257,2]
[336824687,1725193843716,-500.0,0.00025257,2]
[336824688,1725193843726,-500.0,0.00025257,2]
[336824689,1725193843735,-500.0,0.00025257,2]
[336824690,1725193843745,-500.0,0.00025257,2]
[336824691,1725193843755,-500.0,0.00025257,2]
[336824692,1725193843764,-500.0,0.00025257,2]
[336824693,1725193843775,-500.0,0.00025257,2]
[336824694,1725193843784,-500.0,0.00025257,2]
[336824695,1725193843793,-500.0,0.00025257,2]
[336824696,1725193843802,-500.0,0.00025257,2]
[336824697,1725193843812,-500.0,0.00025257,2]
[336824698,1725193843822,-500.0,0.00025257,2]
[336824699,1725193843832,-500.0,0.00025257,2]
[336824700,1725193843842,-622.68737494,0.00025257,2]
[336824701,1725193843853,-500.0,0.00025257,2]
[336824702,1725193843862,-500.0,0.00025257,2]
[336824703,1725193843872,-500.0,0.00025257,2]
[336824704,1725193843882,-500.0,0.00025257,2]
[336824705,1725193843891,-500.0,0.00025257,2]
[336824706,1725193843901,-500.0,0.00025257,2]
[336824707,1725193843911,-500.0,0.00025257,2]
[336824708,1725193843922,-500.0,0.00025257,2]
[336824709,1725193843933,-500.0,0.00025257,2]
[336824710,1725193843942,-500.0,0.00025257,2]
[336824711,1725193843951,-500.0,0.00025257,2]
[336824712,1725193843962,-500.0,0.00025257,2]
[336824713,1725193843972,-500.0,0.00025257,2]
[336824714,1725193843982,-500.0,0.00025257,2]
[336824715,1725193843991,-500.0,0.00025257,2]
[336824716,1725193844003,-500.0,0.00025257,2]
[336824717,1725193844015,-500.0,0.00025257,2]
[336824718,1725193844025,-500.0,0.00025257,2]
[336824719,1725193844035,-500.0,0.00025257,2]
[336824720,1725193844044,-500.0,0.00025257,2]
[336824721,1725193844054,-500.0,0.00025257,2]
[336824722,1725193844065,-500.0,0.00025257,2]
[336824723,1725193844074,-500.0,0.00025257,2]
[336824724,1725193844084,-500.0,0.00025257,2]
[336824725,1725193844093,-500.0,0.00025257,2]
[336824726,1725193844104,-500.0,0.00025257,2]
[336824727,1725193844113,-500.0,0.00025257,2]
[336824728,1725193844123,-500.0,0.00025257,2]
[336824729,1725193844133,-500.0,0.00025257,2]
[336824730,1725193844142,-500.0,0.00025257,2]
[336824731,1725193844151,-500.0,0.00025257,2]
[336824732,1725193844161,-500.0,0.00025257,2]
[336824733,1725193844171,-500.0,0.00025257,2]
[336824734,1725193844180,-500.0,0.00025257,2]
[336824735,1725193844191,-500.0,0.00025257,2]
[336824736,1725193844201,-251.4582946,0.00025257,2]
[336824737,1725193844211,-500.0,0.00025257,2]
[336824738,1725193844222,-500.0,0.00025257,2]
[336824739,1725193844233,-500.0,0.00025257,2]
[336824740,1725193844242,-500.0,0.00025257,2]
[336824741,1725193844251,-500.0,0.00025257,2]
[336824742,1725193844261,-500.0,0.00025257,2]
[336824743,1725193844271,-500.0,0.00025257,2]
[336824744,1725193844281,-500.0,0.00025257,2]
[336824745,1725193844290,-299.99999999,0.00025257,2]
[336824746,1725193844299,-30418.6323627,0.00025258,3]
[336824747,1725193844309,-500.0,0.0002526,2]
[336824748,1725193844319,-500.0,0.0002526,2]
[336824749,1725193844332,-1282.38,0.0002526,2]
[336824750,1725193844343,-500.0,0.0002526,2]
[336824751,1725193844353,-500.0,0.0002526,2]
[336824752,1725193844364,-1214.93,0.0002526,2]
[336824753,1725193844373,-500.0,0.0002526,2]
[336824754,1725193844383,-500.0,0.0002526,2]
[336824755,1725193844393,-2266.07,0.0002526,2]
[336824756,1725193844402,-12175.96,0.0002526,2]
[336824757,1725193844411,-500.0,0.0002526,2]
[336824758,1725193844421,-2343.59,0.0002526,2]
[336824759,1725193844431,-1140.49,0.0002526,2]
[336824760,1725193844441,-500.0,0.0002526,2]
[336824761,1725193844450,-500.0,0.0002526,2]
[336824762,1725193844460,-500.0,0.0002526,2]
[336824763,1725193844469,-764.52,0.0002526,2]
[336824764,1725193844479,-500.0,0.0002526,2]
[336824765,1725193844489,-192.6124918,0.0002526,2]
[336824766,1725193844499,-707.55,0.0002526,2]
[336824767,1725193844510,-502.05925854,0.0002526,2]
[336824768,1725193844520,-500.0,0.0002526,2]
[336824769,1725193844530,-500.0,0.0002526,2]
[336824770,1725193844539,-500.0,0.0002526,2]
[336824772,1725193844548,-500.0,0.0002526,2]
[336824773,1725193844557,-500.0,0.0002526,2]
[336824775,1725193844568,-1334.98,0.0002526,2]
[336824777,1725193844579,-500.0,0.0002526,2]
[336824778,1725193844588,-500.0,0.0002526,2]
[336824779,1725193844597,-500.0,0.0002526,2]
[336824780,1725193844607,-1219.02,0.0002526,2]
[336824781,1725193844617,-689.31,0.0002526,2]
[336824782,1725193844626,-500.0,0.0002526,2]
[336824783,1725193844636,-500.0,0.0002526,2]
[336824784,1725193844645,-500.0,0.0002526,2]
[336824785,1725193844655,-500.0,0.0002526,2]
[336824786,1725193844664,-500.0,0.0002526,2]
[336824787,1725193844674,-500.0,0.0002526,2]
[336824788,1725193844684,-362.49932087,0.0002526,2]
[336824789,1725193844695,-699.39,0.0002526,2]
[336824790,1725193844705,-500.0,0.0002526,2]
[336824791,1725193844715,-512.96,0.0002526,2]
[336824792,1725193844726,-1975.88,0.0002526,2]
[336824793,1725193844736,-20279.0882418,0.0002526,3]
[336824794,1725193844746,-500.0,0.00025264,2]
[336824795,1725193844757,-500.0,0.00025266,2]
[336824796,1725193844767,-500.0,0.00025266,2]
[336824797,1725193844777,-286.47478058,0.00025266,2]
[336824798,1725193844787,-500.0,0.00025266,2]
[336824799,1725193844797,-158.98943089,0.00025266,2]
[336824800,1725193844806,-500.0,0.00025266,2]
[336824801,1725193844816,-500.0,0.00025266,2]
[336824802,1725193844825,-206.75174276,0.00025266,2]
[336824803,1725193844836,-187.60009971,0.00025266,2]
[336824804,1725193844846,-500.0,0.00025266,2]
[336824805,1725193844856,-500.0,0.00025267,2]
[336824806,1725193844866,-495.6903607,0.00025267,2]
[336824807,1725193844877,-500.0,0.00025267,2]
[336824808,1725193844886,-500.0,0.00025267,2]
[336824809,1725193844897,-500.0,0.00025267,2]
[336824810,1725193844908,-500.0,0.00025267,2]
[336824811,1725193844919,-500.0,0.00025267,2]
[336824812,1725193844932,-500.0,0.00025267,2]
[336824813,1725193844943,-500.0,0.00025267,2]
[336824814,1725193844953,-500.0,0.00025267,2]
[336824815,1725193844962,-500.0,0.00025267,2]
[336824816,1725193844973,-500.0,0.00025267,2]
[336824817,1725193844984,-500.0,0.00025267,2]
[336824818,1725193844994,-500.0,0.00025267,2]
[336824819,1725193845005,-500.0,0.00025267,2]
[336824820,1725193845015,-503.76070434,0.00025267,2]
[336824821,1725193845024,-458.61057164,0.00025267,2]
[336824822,1725193845034,-500.0,0.00025267,2]
[336824823,1725193845043,-500.0,0.00025267,2]
[336824824,1725193845053,-500.0,0.00025267,2]
[336824825,1725193845063,-500.0,0.00025267,2]
[336824826,1725193845077,-500.0,0.00025267,2]
[336824827,1725193845087,-519.39,0.00025267,2]
[336824828,1725193845098,-500.0,0.00025267,2]
[336824829,1725193845107,-500.0,0.00025267,2]
[336824830,1725193845117,-502.29434108,0.00025267,2]
[336824831,1725193845127,-500.0,0.00025267,2]
[336824832,1725193845137,-500.0,0.00025267,2]
[336824833,1725193845146,-553.34,0.00025267,2]
[336824834,1725193845156,-587.98,0.00025267,2]
[336824835,1725193845166,-501.76369509,0.00025267,2]
[336824836,1725193845175,-500.0,0.00025267,2]
[336824837,1725193845185,-105.81268506,0.00025267,2]
[336824872,1725193848633,-394.18731494,0.00025267,2]
[336824873,1725193848644,-500.0,0.00025267,2]
[336824874,1725193848655,-500.0,0.00025267,2]
[336824875,1725193848666,-500.0,0.00025267,2]
[336824876,1725193848676,-558.32,0.00025267,2]
[336824877,1725193848686,-500.0,0.00025267,2]
[336824878,1725193848696,-921.81,0.00025267,2]
[336824879,1725193848707,-104.24094043,0.00025267,2]
[336824880,1725193848887,-705.96,0.00025247,3]
[336824881,1725193848899,-502.12257334,0.0002526,2]
[336824882,1725193848909,-500.0,0.0002526,2]
[336824883,1725193848919,-395.75905957,0.00025267,2]
[336824884,1725193848933,-500.0,0.00025267,2]
[336824885,1725193848943,-500.0,0.00025267,2]
[336824886,1725193848953,-500.0,0.00025267,2]
[336824887,1725193848963,-500.0,0.00025267,2]
[336824888,1725193848973,-500.0,0.00025267,2]
[336824889,1725193848984,-500.0,0.00025267,2]
[336824890,1725193848995,-500.0,0.00025267,2]
[336824891,1725193849007,-500.0,0.00025267,2]
[336824892,1725193849017,-500.0,0.00025267,2]
[336824893,1725193849026,-500.0,0.00025267,2]
[336824894,1725193849037,-500.0,0.00025267,2]
[336824895,1725193849046,-500.0,0.00025267,2]
[336824896,1725193849057,-500.0,0.00025267,2]
[336824897,1725193849067,-500.0,0.00025267,2]
[336824898,1725193849077,-500.0,0.00025267,2]
[336824899,1725193849087,-500.0,0.00025267,2]
[336824900,1725193849098,-500.0,0.00025267,2]
[336824901,1725193849108,-500.0,0.00025267,2]
[336824902,1725193849118,-500.0,0.00025267,2]
[336824903,1725193849129,-500.0,0.00025267,2]
[336824904,1725193849140,-500.0,0.00025267,2]
[336824905,1725193849150,-500.0,0.00025267,2]
[336824906,1725193849160,-761.13,0.00025267,2]
[336824907,1725193849170,-762.24,0.00025267,2]
[336824908,1725193849181,-500.0,0.00025267,2]
[336824909,1725193849192,-1492.77,0.00025267,2]
[336824910,1725193849203,-500.0,0.00025267,2]
[336824911,1725193849213,-2018.78,0.00025267,2]
[336824912,1725193849224,-500.0,0.00025267,2]
[336824913,1725193849236,-500.0,0.00025267,2]
[336824914,1725193849245,-500.0,0.00025267,2]
[336824915,1725193849255,-6053.52,0.00025267,2]
[336824916,1725193849267,-500.0,0.00025267,2]
[336824917,1725193849277,-500.0,0.00025267,2]
[336824918,1725193849287,-500.0,0.00025267,2]
[336824919,1725193849298,-611.09,0.00025267,2]
[336824920,1725193849308,-500.0,0.00025267,2]
[336824921,1725193849317,-500.0,0.00025267,2]
[336824922,1725193849327,-500.0,0.00025267,2]
[336824923,1725193849337,-500.0,0.00025267,2]
[336824924,1725193849348,-501.51023586,0.00025267,2]
[336824925,1725193849358,-645.65,0.00025267,2]
[336824926,1725193849368,-347.67815756,0.00025267,2]
[336824927,1725193849379,-500.0,0.00025267,2]
[336824928,1725193849390,-500.0,0.00025267,2]
[336824929,1725193849401,-500.0,0.00025267,2]
[336824930,1725193849412,-500.0,0.00025267,2]
[336824931,1725193849423,-500.0,0.00025267,2]
[336824932,1725193849433,-500.0,0.00025267,2]
[336824933,1725193849443,-500.0,0.00025267,2]
[336824934,1725193849454,-500.0,0.00025267,2]
[336824935,1725193849465,-500.0,0.00025267,2]
[336824936,1725193849474,-500.0,0.00025267,2]
[336824937,1725193849485,-500.0,0.00025267,2]
[336824938,1725193849495,-500.0,0.00025267,2]
[336824939,1725193849505,-500.0,0.00025267,2]
[336824940,1725193849515,-501.18459754,0.00025267,2]
[336824941,1725193849526,-500.0,0.00025267,2]
[336824942,1725193849536,-619.44,0.00025267,2]
[336824943,1725193849682,-500.0,0.00025267,2]
[336824944,1725193849693,-573.17,0.00025267,2]
[336824945,1725193849703,-500.0,0.00025267,2]
[336824946,1725193849713,-500.0,0.00025267,2]
[336824947,1725193849722,-12782.32758278,0.00025268,11]
[336824948,1725193849732,-500.0,0.00025268,2]
[336824949,1725193849741,-500.0,0.00025268,2]
[336824950,1725193849751,-500.0,0.00025268,2]
[336824951,1725193849760,-500.0,0.00025268,2]
[336824952,1725193849770,-500.0,0.00025268,2]
[336824953,1725193849779,-500.0,0.00025268,2]
[336824954,1725193849788,-500.0,0.00025268,2]
[336824955,1725193849798,-500.0,0.00025268,2]
[336824956,1725193849807,-500.0,0.00025268,2]
[336824957,1725193849817,-500.0,0.00025268,2]
[336824958,1725193849826,-500.0,0.00025268,2]
[336824959,1725193849836,-502.24439281,0.00025268,2]
[336824960,1725193849846,-500.0,0.00025268,2]
[336824961,1725193849858,-500.0,0.00025268,2]
[336824962,1725193849867,-500.0,0.00025268,2]
[336824963,1725193849877,-500.0,0.00025268,2]
[336824964,1725193849887,-500.0,0.00025268,2]
[336824965,1725193849896,-500.0,0.00025268,2]
[336824966,1725193849905,-500.0,0.00025268,2]
[336824967,1725193849914,-500.0,0.00025268,2]
[336824968,1725193849927,-500.0,0.00025268,2]
[336824969,1725193849936,-500.0,0.00025268,2]
[336824970,1725193849945,-500.0,0.00025268,2]
[336824971,1725193849955,-500.0,0.00025268,2]
[336824972,1725193849965,-500.0,0.00025268,2]
[336824973,1725193849976,-500.0,0.00025268,2]
[336824974,1725193849985,-500.0,0.00025268,2]
[336824975,1725193849995,-500.0,0.00025268,2]
[336824976,1725193850005,-500.0,0.00025268,2]
[336824977,1725193850016,-500.0,0.00025268,2]
[336824978,1725193850027,-500.0,0.00025268,2]
[336824979,1725193850036,-500.0,0.00025268,2]
[336824980,1725193850047,-500.0,0.00025268,2]
[336824981,1725193850056,-500.0,0.00025268,2]
[336824982,1725193850065,-500.0,0.00025268,2]
[336824983,1725193850076,-500.0,0.00025268,2]
[336824984,1725193850086,-500.0,0.00025268,2]
[336824985,1725193850097,-500.0,0.00025268,2]
[336824986,1725193850107,-501.29122431,0.00025268,2]
[336824987,1725193850116,-500.0,0.00025268,2]
[336824988,1725193850126,-500.0,0.00025268,2]
[336824989,1725193850135,-502.22964379,0.00025268,2]
[336824990,1725193850146,-500.0,0.00025268,2]
[336824991,1725193850157,-500.0,0.00025268,2]
[336824992,1725193850167,-500.0,0.00025268,2]
[336824993,1725193850178,-500.0,0.00025268,2]
[336824994,1725193850188,-500.0,0.00025268,2]
[336824995,1725193850199,-500.0,0.00025268,2]
[336824996,1725193850208,-200.0,0.00025268,2]
[336824997,1725193850218,-506.29053006,0.00025268,2]
[336824998,1725193850227,-500.0,0.00025268,2]
[336824999,1725193850242,-501.51402623,0.00025268,2]
[336825000,1725193850253,-500.0,0.00025268,2]
[336825001,1725193850263,-500.0,0.00025268,2]
[336825002,1725193850273,-500.0,0.00025268,2]
[336825003,1725193850284,-500.0,0.00025268,2]
[336825004,1725193850295,-500.0,0.00025268,2]
[336825005,1725193850305,-500.0,0.00025268,2]
[336825006,1725193850314,-500.0,0.00025268,2]